[Event "November 21 Late 2023"]
[Site "https://www.chess.com"]
[Date "2023.11.21"]
[Round "10"]
[White "Demchenko, Anton"]
[Black "Sturt, Raven"]
[Result "1-0"]
[Board "16"]
[TimeControl "180+1"]
[WhiteFideId "4160258"]
[BlackFideId "2007304"]
[WhiteElo "2545"]
[BlackElo "2408"]
[WhiteTeam "SLO"]
[BlackTeam "USA"]
[WhiteClock "0:00:53"]
[BlackClock "0:00:00"]

1. e4 {[%clk 0:03:00]}  e5 {[%clk 0:02:58]} 2. Nf3 {[%clk 0:03:00]}  Nc6 {[%clk 0:02:58]} 3. Bc4 {[%clk 0:03:00]}  Nf6 {[%clk 0:02:54]} 4. d3 {[%clk 0:03:00]}  Be7 {[%clk 0:02:53]} 5. O-O {[%clk 0:02:59]}  O-O {[%clk 0:02:53]} 6. Re1 {[%clk 0:02:59]}  d6 {[%clk 0:02:53]} 7. a4 {[%clk 0:02:59]}  Na5 {[%clk 0:02:54]} 8. Ba2 {[%clk 0:02:59]}  c5 {[%clk 0:02:54]} 9. Na3 {[%clk 0:02:58]}  a6 {[%clk 0:02:42]} 10. c3 {[%clk 0:02:56]}  h6 {[%clk 0:02:40]} 11. Bd2 {[%clk 0:02:48]}  Be6 {[%clk 0:02:39]} 12. Bxe6 {[%clk 0:02:34]}  fxe6 {[%clk 0:02:38]} 13. Rb1 {[%clk 0:02:24]}  Qe8 {[%clk 0:02:18]} 14. h3 {[%clk 0:02:13]}  Bd8 {[%clk 0:02:13]} 15. b4 {[%clk 0:02:10]}  cxb4 {[%clk 0:02:13]} 16. cxb4 {[%clk 0:02:11]}  Nc6 {[%clk 0:02:13]} 17. b5 {[%clk 0:02:09]}  axb5 {[%clk 0:02:12]} 18. Nxb5 {[%clk 0:02:09]}  Qd7 {[%clk 0:02:05]} 19. Qb3 {[%clk 0:02:04]}  Nh5 {[%clk 0:01:51]} 20. d4 {[%clk 0:02:03]}  Bb6 {[%clk 0:01:34]} 21. d5 {[%clk 0:01:47]}  Nd8 {[%clk 0:01:27]} 22. Bb4 {[%clk 0:01:29]}  Kh8 {[%clk 0:00:40]} 23. Bxd6 {[%clk 0:01:26]}  Rxf3 {[%clk 0:00:27]} 24. Qxf3 {[%clk 0:01:25]}  Nf6 {[%clk 0:00:26]} 25. Bxe5 {[%clk 0:01:23]}  Nh7 {[%clk 0:00:18]} 26. Qg3 {[%clk 0:01:06]}  Rxa4 {[%clk 0:00:15]} 27. Nc3 {[%clk 0:00:58]}  Ra6 {[%clk 0:00:14]} 28. Rbd1 {[%clk 0:00:54]}  Ng5 {[%clk 0:00:00]} 29. h4 {[%clk 0:00:53]} 1-0

[Event "November 21 Late 2023"]
[Site "https://www.chess.com"]
[Date "2023.11.21"]
[Round "10"]
[White "Tactrics"]
[Black "Manukyan, Sargis A."]
[Result "1-0"]
[Board "19"]
[TimeControl "180+1"]
[BlackFideId "13303970"]
[WhiteElo "2896"]
[BlackElo "2204"]
[BlackTeam "ARM"]
[WhiteClock "0:00:36"]
[BlackClock "0:00:02"]

1. e4 {[%clk 0:02:56]}  c5 {[%clk 0:02:59]} 2. Nf3 {[%clk 0:02:56]}  d6 {[%clk 0:03:00]} 3. Bb5+ {[%clk 0:02:55]}  Bd7 {[%clk 0:03:00]} 4. Bxd7+ {[%clk 0:02:55]}  Qxd7 {[%clk 0:03:01]} 5. O-O {[%clk 0:02:56]}  Nc6 {[%clk 0:03:01]} 6. Re1 {[%clk 0:02:56]}  Nf6 {[%clk 0:03:02]} 7. b3 {[%clk 0:02:56]}  e6 {[%clk 0:03:02]} 8. Bb2 {[%clk 0:02:56]}  Be7 {[%clk 0:03:03]} 9. e5 {[%clk 0:02:55]}  dxe5 {[%clk 0:03:03]} 10. Nxe5 {[%clk 0:02:55]}  Nxe5 {[%clk 0:03:03]} 11. Bxe5 {[%clk 0:02:56]}  O-O {[%clk 0:03:04]} 12. d3 {[%clk 0:02:57]}  b5 {[%clk 0:03:02]} 13. Nd2 {[%clk 0:02:56]}  Rfd8 {[%clk 0:03:02]} 14. Qf3 {[%clk 0:02:56]}  Qd5 {[%clk 0:02:59]} 15. Qg3 {[%clk 0:02:56]}  Ne8 {[%clk 0:02:58]} 16. Nf3 {[%clk 0:02:48]}  Bd6 {[%clk 0:02:48]} 17. Re4 {[%clk 0:02:36]}  Bxe5 {[%clk 0:02:47]} 18. Rxe5 {[%clk 0:02:35]}  Qd6 {[%clk 0:02:44]} 19. Rae1 {[%clk 0:02:31]}  c4 {[%clk 0:02:32]} 20. Rxb5 {[%clk 0:02:17]}  Qxg3 {[%clk 0:02:25]} 21. hxg3 {[%clk 0:02:16]}  cxd3 {[%clk 0:02:26]} 22. cxd3 {[%clk 0:02:16]}  Rxd3 {[%clk 0:02:27]} 23. Rb7 {[%clk 0:02:17]}  a5 {[%clk 0:02:18]} 24. Rxf7 {[%clk 0:02:14]}  Rxb3 {[%clk 0:02:07]} 25. axb3 {[%clk 0:02:00]}  Kxf7 {[%clk 0:02:06]} 26. Ng5+ {[%clk 0:02:01]}  Kg6 {[%clk 0:01:47]} 27. Nxe6 {[%clk 0:02:01]}  Rb8 {[%clk 0:01:46]} 28. Nd4 {[%clk 0:01:53]}  Kf7 {[%clk 0:01:41]} 29. Re5 {[%clk 0:01:43]}  Rb4 {[%clk 0:01:38]} 30. Nc6 {[%clk 0:01:36]}  Rxb3 {[%clk 0:01:33]} 31. Rxa5 {[%clk 0:01:35]}  Rb1+ {[%clk 0:01:28]} 32. Kh2 {[%clk 0:01:35]}  Rc1 {[%clk 0:01:27]} 33. Ne5+ {[%clk 0:01:32]}  Ke6 {[%clk 0:01:17]} 34. Nd3 {[%clk 0:01:32]}  Rc8 {[%clk 0:01:14]} 35. g4 {[%clk 0:01:26]}  Nf6 {[%clk 0:01:08]} 36. Nf4+ {[%clk 0:01:27]}  Kf7 {[%clk 0:01:08]} 37. f3 {[%clk 0:01:27]}  Rc7 {[%clk 0:01:04]} 38. Ra6 {[%clk 0:01:24]}  h6 {[%clk 0:01:01]} 39. Kg3 {[%clk 0:01:22]}  Rb7 {[%clk 0:01:00]} 40. Rc6 {[%clk 0:01:22]}  Ra7 {[%clk 0:00:54]} 41. Ne6 {[%clk 0:01:19]}  Ra3 {[%clk 0:00:51]} 42. Nd4 {[%clk 0:01:17]}  Ra7 {[%clk 0:00:41]} 43. Nf5 {[%clk 0:01:15]}  Rd7 {[%clk 0:00:33]} 44. Ra6 {[%clk 0:01:13]}  Rc7 {[%clk 0:00:33]} 45. Nd6+ {[%clk 0:01:06]}  Kg8 {[%clk 0:00:32]} 46. Ra8+ {[%clk 0:01:04]}  Kh7 {[%clk 0:00:31]} 47. Nf5 {[%clk 0:01:04]}  g6 {[%clk 0:00:31]} 48. Nd4 {[%clk 0:01:03]}  Rd7 {[%clk 0:00:30]} 49. Ne6 {[%clk 0:01:03]}  Re7 {[%clk 0:00:30]} 50. Ra6 {[%clk 0:01:00]}  Nd5 {[%clk 0:00:27]} 51. Nf8+ {[%clk 0:00:59]}  Kg7 {[%clk 0:00:25]} 52. Nxg6 {[%clk 0:00:59]}  Rb7 {[%clk 0:00:21]} 53. Nf4 {[%clk 0:00:57]}  Nc3 {[%clk 0:00:19]} 54. Ne6+ {[%clk 0:00:55]}  Kh7 {[%clk 0:00:17]} 55. Nd4 {[%clk 0:00:55]}  Rd7 {[%clk 0:00:16]} 56. Nf5 {[%clk 0:00:55]}  Ne2+ {[%clk 0:00:08]} 57. Kf2 {[%clk 0:00:54]}  Nf4 {[%clk 0:00:09]} 58. Rxh6+ {[%clk 0:00:54]}  Kg8 {[%clk 0:00:10]} 59. Rd6 {[%clk 0:00:54]}  Ra7 {[%clk 0:00:09]} 60. g3 {[%clk 0:00:50]}  Ra2+ {[%clk 0:00:09]} 61. Ke3 {[%clk 0:00:51]}  Ng2+ {[%clk 0:00:10]} 62. Ke4 {[%clk 0:00:50]}  Re2+ {[%clk 0:00:10]} 63. Kd5 {[%clk 0:00:49]}  Rf2 {[%clk 0:00:09]} 64. f4 {[%clk 0:00:48]}  Re2 {[%clk 0:00:08]} 65. g5 {[%clk 0:00:45]}  Ne1 {[%clk 0:00:08]} 66. g6 {[%clk 0:00:39]}  Re8 {[%clk 0:00:06]} 67. Rd7 {[%clk 0:00:37]}  Nf3 {[%clk 0:00:03]} 68. Nh6+ {[%clk 0:00:37]}  Kh8 {[%clk 0:00:02]} 69. Rh7# {[%clk 0:00:36]} 1-0

[Event "November 21 Late 2023"]
[Site "https://www.chess.com"]
[Date "2023.11.21"]
[Round "10"]
[White "Vasquez Schroeder, Rodrigo"]
[Black "Leiva, Gianmarco"]
[Result "1-0"]
[Board "21"]
[TimeControl "180+1"]
[WhiteFideId "3400042"]
[BlackFideId "3804399"]
[WhiteElo "2582"]
[BlackElo "2335"]
[WhiteTeam "CHI"]
[BlackTeam "PER"]
[WhiteClock "0:00:51"]
[BlackClock "0:00:01"]

1. e4 {[%clk 0:02:56]}  g6 {[%clk 0:03:00]} 2. d4 {[%clk 0:02:56]}  Bg7 {[%clk 0:03:01]} 3. Nf3 {[%clk 0:02:56]}  d6 {[%clk 0:03:01]} 4. Bc4 {[%clk 0:02:56]}  c6 {[%clk 0:02:48]} 5. Bb3 {[%clk 0:02:55]}  Nf6 {[%clk 0:02:45]} 6. Nbd2 {[%clk 0:02:47]}  O-O {[%clk 0:02:42]} 7. O-O {[%clk 0:02:47]}  Nbd7 {[%clk 0:02:40]} 8. e5 {[%clk 0:02:44]}  dxe5 {[%clk 0:02:39]} 9. dxe5 {[%clk 0:02:44]}  Nd5 {[%clk 0:02:37]} 10. e6 {[%clk 0:02:41]}  fxe6 {[%clk 0:02:37]} 11. Ne4 {[%clk 0:02:37]}  Ne5 {[%clk 0:02:15]} 12. Nxe5 {[%clk 0:02:29]}  Bxe5 {[%clk 0:02:16]} 13. g3 {[%clk 0:02:26]}  Bg7 {[%clk 0:02:12]} 14. Qe2 {[%clk 0:02:25]}  e5 {[%clk 0:02:11]} 15. Rd1 {[%clk 0:02:07]}  Qe8 {[%clk 0:01:41]} 16. Kg2 {[%clk 0:02:00]}  h6 {[%clk 0:01:35]} 17. h3 {[%clk 0:01:59]}  Qd7 {[%clk 0:01:27]} 18. Rh1 {[%clk 0:01:44]}  Qf5 {[%clk 0:01:27]} 19. f3 {[%clk 0:01:43]}  Be6 {[%clk 0:01:23]} 20. Bd2 {[%clk 0:01:40]}  Rad8 {[%clk 0:01:08]} 21. Rad1 {[%clk 0:01:39]}  b6 {[%clk 0:01:08]} 22. Bc1 {[%clk 0:01:34]}  Kh7 {[%clk 0:01:05]} 23. h4 {[%clk 0:01:33]}  Rd7 {[%clk 0:01:01]} 24. c3 {[%clk 0:01:33]}  Rfd8 {[%clk 0:01:01]} 25. Bc2 {[%clk 0:01:33]}  Qf7 {[%clk 0:01:00]} 26. h5 {[%clk 0:01:32]}  Kg8 {[%clk 0:00:51]} 27. hxg6 {[%clk 0:01:28]}  Qxg6 {[%clk 0:00:52]} 28. Nc5 {[%clk 0:01:21]}  Qf7 {[%clk 0:00:32]} 29. Nxd7 {[%clk 0:01:21]}  Rxd7 {[%clk 0:00:32]} 30. Qe4 {[%clk 0:01:19]}  Rd6 {[%clk 0:00:24]} 31. Qh7+ {[%clk 0:01:10]}  Kf8 {[%clk 0:00:23]} 32. Bxh6 {[%clk 0:01:07]}  Bxh6 {[%clk 0:00:15]} 33. Qh8+ {[%clk 0:01:07]}  Qg8 {[%clk 0:00:14]} 34. Qxh6+ {[%clk 0:01:04]}  Ke8 {[%clk 0:00:14]} 35. Qg6+ {[%clk 0:01:02]}  Qxg6 {[%clk 0:00:08]} 36. Bxg6+ {[%clk 0:01:01]}  Kd7 {[%clk 0:00:09]} 37. Kf2 {[%clk 0:00:59]}  b5 {[%clk 0:00:05]} 38. Be4 {[%clk 0:00:58]}  Bf7 {[%clk 0:00:03]} 39. Rh7 {[%clk 0:00:55]}  Rf6 {[%clk 0:00:04]} 40. Rxf7 {[%clk 0:00:50]}  Rxf7 {[%clk 0:00:03]} 41. Bxd5 {[%clk 0:00:50]}  cxd5 {[%clk 0:00:01]} 42. Rxd5+ {[%clk 0:00:51]} 1-0

[Event "November 21 Late 2023"]
[Site "https://www.chess.com"]
[Date "2023.11.21"]
[Round "10"]
[White "Van Dael, Siem"]
[Black "Krysa, Leandro"]
[Result "0-1"]
[Board "23"]
[TimeControl "180+1"]
[WhiteFideId "1049771"]
[BlackFideId "116807"]
[WhiteElo "2252"]
[BlackElo "2495"]
[WhiteTeam "NED"]
[BlackTeam "ARG"]
[WhiteClock "0:01:08"]
[BlackClock "0:01:54"]

1. e4 {[%clk 0:03:00]}  e5 {[%clk 0:02:58]} 2. Nf3 {[%clk 0:03:01]}  Nc6 {[%clk 0:02:59]} 3. Bc4 {[%clk 0:03:01]}  Nf6 {[%clk 0:02:59]} 4. Ng5 {[%clk 0:03:00]}  d5 {[%clk 0:02:58]} 5. exd5 {[%clk 0:03:01]}  Na5 {[%clk 0:02:59]} 6. Bb5+ {[%clk 0:03:02]}  c6 {[%clk 0:02:59]} 7. dxc6 {[%clk 0:03:03]}  bxc6 {[%clk 0:03:00]} 8. Bd3 {[%clk 0:03:03]}  Nd5 {[%clk 0:03:00]} 9. h4 {[%clk 0:03:04]}  h6 {[%clk 0:02:55]} 10. Qh5 {[%clk 0:03:03]}  Qc7 {[%clk 0:02:49]} 11. Nf3 {[%clk 0:02:45]}  Bd6 {[%clk 0:02:40]} 12. Nh2 {[%clk 0:02:25]}  Nf4 {[%clk 0:02:35]} 13. Qf3 {[%clk 0:02:25]}  f5 {[%clk 0:02:34]} 14. Nc3 {[%clk 0:02:21]}  e4 {[%clk 0:02:30]} 15. Nxe4 {[%clk 0:02:19]}  fxe4 {[%clk 0:02:30]} 16. Qxe4+ {[%clk 0:02:20]}  Kf7 {[%clk 0:02:19]} 17. Bc4+ {[%clk 0:02:02]}  Nxc4 {[%clk 0:02:17]} 18. Qxc4+ {[%clk 0:02:03]}  Be6 {[%clk 0:02:18]} 19. Qe4 {[%clk 0:01:55]}  Qd7 {[%clk 0:02:08]} 20. O-O {[%clk 0:01:25]}  Bd5 {[%clk 0:02:04]} 21. Qa4 {[%clk 0:01:19]}  Ne2+ {[%clk 0:01:55]} 22. Kh1 {[%clk 0:01:18]}  Qh3 {[%clk 0:01:55]} 23. f3 {[%clk 0:01:08]}  Qxh2# {[%clk 0:01:54]} 0-1

[Event "November 21 Late 2023"]
[Site "https://www.chess.com"]
[Date "2023.11.21"]
[Round "10"]
[White "Bazeev, German"]
[Black "Ambartsumova, Karina"]
[Result "1-0"]
[Board "27"]
[TimeControl "180+1"]
[WhiteFideId "24119350"]
[BlackFideId "4166299"]
[WhiteElo "2418"]
[BlackElo "2240"]
[WhiteTeam "RUS"]
[BlackTeam "RUS"]
[WhiteClock "0:00:28"]
[BlackClock "0:00:11"]

1. d4 {[%clk 0:03:00]}  Nf6 {[%clk 0:02:59]} 2. c4 {[%clk 0:03:00]}  e6 {[%clk 0:02:59]} 3. Nf3 {[%clk 0:02:59]}  d5 {[%clk 0:02:59]} 4. Nc3 {[%clk 0:02:59]}  Be7 {[%clk 0:02:59]} 5. Bf4 {[%clk 0:03:00]}  O-O {[%clk 0:02:58]} 6. e3 {[%clk 0:03:00]}  b6 {[%clk 0:02:59]} 7. a3 {[%clk 0:02:52]}  c5 {[%clk 0:02:56]} 8. cxd5 {[%clk 0:02:40]}  exd5 {[%clk 0:02:55]} 9. Be2 {[%clk 0:02:35]}  Bb7 {[%clk 0:02:47]} 10. O-O {[%clk 0:02:30]}  Nc6 {[%clk 0:02:45]} 11. Rc1 {[%clk 0:02:27]}  Rc8 {[%clk 0:02:43]} 12. dxc5 {[%clk 0:02:25]}  bxc5 {[%clk 0:02:44]} 13. Na4 {[%clk 0:02:18]}  Qa5 {[%clk 0:02:32]} 14. Nd2 {[%clk 0:01:43]}  c4 {[%clk 0:02:05]} 15. Nc3 {[%clk 0:01:33]}  Rfd8 {[%clk 0:02:01]} 16. Nf3 {[%clk 0:01:30]}  h6 {[%clk 0:01:48]} 17. Nd4 {[%clk 0:01:26]}  Nxd4 {[%clk 0:01:43]} 18. exd4 {[%clk 0:01:27]}  Bd6 {[%clk 0:01:22]} 19. Qd2 {[%clk 0:01:18]}  Qb6 {[%clk 0:01:10]} 20. Bxd6 {[%clk 0:01:13]}  Qxd6 {[%clk 0:01:10]} 21. Bf3 {[%clk 0:01:11]}  a6 {[%clk 0:01:08]} 22. Rfe1 {[%clk 0:01:10]}  Re8 {[%clk 0:01:07]} 23. g3 {[%clk 0:01:05]}  Ne4 {[%clk 0:00:56]} 24. Bxe4 {[%clk 0:01:04]}  dxe4 {[%clk 0:00:56]} 25. d5 {[%clk 0:01:05]}  Rcd8 {[%clk 0:00:46]} 26. Rcd1 {[%clk 0:01:05]}  f5 {[%clk 0:00:42]} 27. Qd4 {[%clk 0:01:03]}  Rc8 {[%clk 0:00:41]} 28. Qe3 {[%clk 0:00:53]}  Kh7 {[%clk 0:00:40]} 29. Rd4 {[%clk 0:00:52]}  Red8 {[%clk 0:00:32]} 30. Red1 {[%clk 0:00:52]}  Qb6 {[%clk 0:00:29]} 31. R4d2 {[%clk 0:00:48]}  Qd6 {[%clk 0:00:26]} 32. h4 {[%clk 0:00:46]}  Rf8 {[%clk 0:00:25]} 33. Qf4 {[%clk 0:00:44]}  Rcd8 {[%clk 0:00:15]} 34. Qxd6 {[%clk 0:00:33]}  Rxd6 {[%clk 0:00:16]} 35. Rd4 {[%clk 0:00:29]}  Rc8 {[%clk 0:00:16]} 36. h5 {[%clk 0:00:27]}  Kg8 {[%clk 0:00:16]} 37. f3 {[%clk 0:00:27]}  exf3 {[%clk 0:00:16]} 38. Kf2 {[%clk 0:00:28]}  Kf7 {[%clk 0:00:16]} 39. Kxf3 {[%clk 0:00:29]}  Kf6 {[%clk 0:00:16]} 40. Kf4 {[%clk 0:00:28]}  Rc5 {[%clk 0:00:13]} 41. g4 {[%clk 0:00:28]}  fxg4 {[%clk 0:00:13]} 42. Ne4+ {[%clk 0:00:29]}  Ke7 {[%clk 0:00:11]} 43. Nxc5 {[%clk 0:00:28]}  Bc8 {[%clk 0:00:11]} 44. Ne4 {[%clk 0:00:26]}  Rd8 {[%clk 0:00:11]} 45. d6+ {[%clk 0:00:27]}  Kd7 {[%clk 0:00:11]} 46. Nc5+ {[%clk 0:00:27]}  Kc6 {[%clk 0:00:11]} 47. d7 {[%clk 0:00:27]}  Kxc5 {[%clk 0:00:11]} 48. dxc8=Q+ {[%clk 0:00:27]}  Rxc8 {[%clk 0:00:12]} 49. Rxc4+ {[%clk 0:00:28]}  Kxc4 {[%clk 0:00:11]} 50. Rc1+ {[%clk 0:00:28]} 1-0

[Event "November 21 Late 2023"]
[Site "https://www.chess.com"]
[Date "2023.11.21"]
[Round "10"]
[White "Erdogan, Anil Berk"]
[Black "Maksimovic, Bojan"]
[Result "0-1"]
[Board "28"]
[TimeControl "180+1"]
[WhiteFideId "6348173"]
[BlackFideId "14408120"]
[WhiteElo "2007"]
[BlackElo "2546"]
[WhiteTeam "TUR"]
[BlackTeam "BIH"]
[WhiteClock "0:00:19"]
[BlackClock "0:00:12"]

1. e4 {[%clk 0:02:56]}  a6 {[%clk 0:03:00]} 2. d4 {[%clk 0:02:55]}  e6 {[%clk 0:03:01]} 3. Nf3 {[%clk 0:02:54]}  d5 {[%clk 0:03:01]} 4. exd5 {[%clk 0:02:54]}  exd5 {[%clk 0:03:02]} 5. Nc3 {[%clk 0:02:55]}  c6 {[%clk 0:03:02]} 6. Bg5 {[%clk 0:02:55]}  Be7 {[%clk 0:03:02]} 7. Qd2 {[%clk 0:02:55]}  Bg4 {[%clk 0:03:01]} 8. Bxe7 {[%clk 0:02:52]}  Qxe7+ {[%clk 0:03:02]} 9. Be2 {[%clk 0:02:51]}  Bxf3 {[%clk 0:03:02]} 10. gxf3 {[%clk 0:02:52]}  Nd7 {[%clk 0:03:02]} 11. O-O-O {[%clk 0:02:52]}  Qd6 {[%clk 0:02:52]} 12. Qg5 {[%clk 0:02:23]}  Qh6 {[%clk 0:02:47]} 13. f4 {[%clk 0:02:19]}  Kf8 {[%clk 0:02:38]} 14. Rde1 {[%clk 0:02:04]}  Ne7 {[%clk 0:02:34]} 15. Bg4 {[%clk 0:01:43]}  Nf6 {[%clk 0:02:34]} 16. Rxe7 {[%clk 0:01:29]}  Kxe7 {[%clk 0:02:29]} 17. Qe5+ {[%clk 0:01:28]}  Kf8 {[%clk 0:02:28]} 18. Re1 {[%clk 0:01:28]}  Qxh2 {[%clk 0:02:12]} 19. b3 {[%clk 0:00:53]}  h5 {[%clk 0:02:01]} 20. Bf5 {[%clk 0:00:45]}  Kg8 {[%clk 0:02:00]} 21. Qc7 {[%clk 0:00:34]}  Qxf2 {[%clk 0:01:58]} 22. Re7 {[%clk 0:00:28]}  Rf8 {[%clk 0:01:54]} 23. Kb2 {[%clk 0:00:18]}  Qxd4 {[%clk 0:01:46]} 24. Rxf7 {[%clk 0:00:11]}  Rxf7 {[%clk 0:01:41]} 25. Be6 {[%clk 0:00:12]}  Kh7 {[%clk 0:01:39]} 26. Bf5+ {[%clk 0:00:09]}  Kg8 {[%clk 0:01:33]} 27. Be6 {[%clk 0:00:09]}  Qg1 {[%clk 0:01:04]} 28. Qxf7+ {[%clk 0:00:09]}  Kh7 {[%clk 0:01:05]} 29. Bf5+ {[%clk 0:00:09]}  Kh6 {[%clk 0:01:05]} 30. Ne2 {[%clk 0:00:09]}  Qg2 {[%clk 0:01:04]} 31. Nd4 {[%clk 0:00:08]}  Nh7 {[%clk 0:00:17]} 32. Bd3 {[%clk 0:00:07]}  g6 {[%clk 0:00:17]} 33. Ne6 {[%clk 0:00:07]}  h4 {[%clk 0:00:09]} 34. Qg7+ {[%clk 0:00:07]}  Kh5 {[%clk 0:00:10]} 35. Qxh8 {[%clk 0:00:08]}  Kg4 {[%clk 0:00:11]} 36. Qxh7 {[%clk 0:00:09]}  h3 {[%clk 0:00:11]} 37. Qxg6+ {[%clk 0:00:09]}  Kf3 {[%clk 0:00:12]} 38. Nd4+ {[%clk 0:00:09]}  Ke3 {[%clk 0:00:11]} 39. Qxg2 {[%clk 0:00:07]}  hxg2 {[%clk 0:00:12]} 40. Ne2 {[%clk 0:00:07]}  c5 {[%clk 0:00:13]} 41. f5 {[%clk 0:00:07]}  b5 {[%clk 0:00:14]} 42. Ng1 {[%clk 0:00:04]}  Kf2 {[%clk 0:00:14]} 43. Nh3+ {[%clk 0:00:03]}  Kg3 {[%clk 0:00:14]} 44. Ng1 {[%clk 0:00:03]}  Kf2 {[%clk 0:00:15]} 45. Ne2 {[%clk 0:00:03]}  c4 {[%clk 0:00:15]} 46. f6 {[%clk 0:00:03]}  cxd3 {[%clk 0:00:16]} 47. f7 {[%clk 0:00:04]}  Kxe2 {[%clk 0:00:15]} 48. f8=Q {[%clk 0:00:03]}  g1=Q {[%clk 0:00:15]} 49. Qe7+ {[%clk 0:00:03]}  Qe3 {[%clk 0:00:15]} 50. Qxe3+ {[%clk 0:00:02]}  Kxe3 {[%clk 0:00:15]} 51. cxd3 {[%clk 0:00:03]}  Kxd3 {[%clk 0:00:16]} 52. Ka3 {[%clk 0:00:04]}  Kc3 {[%clk 0:00:16]} 53. b4 {[%clk 0:00:04]}  Kc4 {[%clk 0:00:17]} 54. Kb2 {[%clk 0:00:04]}  Kxb4 {[%clk 0:00:17]} 55. a4 {[%clk 0:00:05]}  Kxa4 {[%clk 0:00:17]} 56. Kc3 {[%clk 0:00:06]}  Ka3 {[%clk 0:00:17]} 57. Kc2 {[%clk 0:00:06]}  Kb4 {[%clk 0:00:17]} 58. Kb1 {[%clk 0:00:07]}  Kc4 {[%clk 0:00:18]} 59. Ka2 {[%clk 0:00:08]}  b4 {[%clk 0:00:19]} 60. Kb2 {[%clk 0:00:08]}  a5 {[%clk 0:00:20]} 61. Ka2 {[%clk 0:00:09]}  d4 {[%clk 0:00:21]} 62. Kb2 {[%clk 0:00:10]}  a4 {[%clk 0:00:21]} 63. Ka2 {[%clk 0:00:11]}  d3 {[%clk 0:00:22]} 64. Kb2 {[%clk 0:00:12]}  a3+ {[%clk 0:00:22]} 65. Ka2 {[%clk 0:00:12]}  Kc3 {[%clk 0:00:23]} 66. Kb1 {[%clk 0:00:13]}  b3 {[%clk 0:00:24]} 67. Ka1 {[%clk 0:00:14]}  d2 {[%clk 0:00:24]} 68. Kb1 {[%clk 0:00:14]}  d1=B {[%clk 0:00:23]} 69. Kc1 {[%clk 0:00:15]}  Bh5 {[%clk 0:00:24]} 70. Kb1 {[%clk 0:00:16]}  Bg6+ {[%clk 0:00:23]} 71. Ka1 {[%clk 0:00:17]}  b2+ {[%clk 0:00:22]} 72. Ka2 {[%clk 0:00:17]}  Bf7+ {[%clk 0:00:22]} 73. Kxa3 {[%clk 0:00:18]}  b1=Q {[%clk 0:00:22]} 74. Ka4 {[%clk 0:00:19]}  Qb6 {[%clk 0:00:21]} 75. Ka3 {[%clk 0:00:19]}  Qb3# {[%clk 0:00:12]} 0-1